[Event "Early-Titled-Tuesday-Blitz-July-09-2024"]
[Site "Chess.com"]
[Date "2024.07.09"]
[Round "6"]
[White "dropstoneDP"]
[Black "honestgames"]
[Result "1-0"]
[WhiteElo "3040"]
[BlackElo "2849"]
[TimeControl "180+1"]
[EndTime "9:06:24 PDT"]
[Termination "dropstoneDP won by resignation"]

1. e4 {[%clk 0:02:59.6]} 1... c5 {[%clk 0:03:00.2]} 2. Nf3 {[%clk 0:02:59.3]}
2... d6 {[%clk 0:03:00.7]} 3. d4 {[%clk 0:02:58.8]} 3... cxd4 {[%clk 0:03:01.6]}
4. Nxd4 {[%clk 0:02:59.3]} 4... Nf6 {[%clk 0:03:02.3]} 5. Nc3 {[%clk 0:02:59.5]}
5... a6 {[%clk 0:03:03]} 6. Rg1 {[%clk 0:02:58.6]} 6... b5 {[%clk 0:02:52.2]} 7.
a4 {[%clk 0:02:56.7]} 7... b4 {[%clk 0:02:49.8]} 8. Nd5 {[%clk 0:02:56.1]} 8...
Nxd5 {[%clk 0:02:24]} 9. exd5 {[%clk 0:02:57]} 9... Bb7 {[%clk 0:02:20]} 10. Nf5
{[%clk 0:02:53.2]} 10... g6 {[%clk 0:02:11.2]} 11. Qd4 {[%clk 0:02:50]} 11...
Rg8 {[%clk 0:02:11.3]} 12. Nh6 {[%clk 0:02:46.1]} 12... Bxh6 {[%clk 0:02:03.1]}
13. Bxh6 {[%clk 0:02:47]} 13... Nd7 {[%clk 0:01:53.4]} 14. O-O-O {[%clk
0:02:46.7]} 14... Qa5 {[%clk 0:01:41.4]} 15. Bc4 {[%clk 0:02:39.8]} 15... Rc8
{[%clk 0:01:34.4]} 16. Rge1 {[%clk 0:02:33.3]} 16... Qxa4 {[%clk 0:01:11.1]} 17.
Kb1 {[%clk 0:02:31.4]} 17... Ne5 {[%clk 0:00:42.7]} 18. Bb3 {[%clk 0:02:29.6]}
18... Qb5 {[%clk 0:00:37.8]} 19. f4 {[%clk 0:02:26.1]} 19... Nd7 {[%clk
0:00:25.6]} 20. Bg5 {[%clk 0:02:24.8]} 20... f6 {[%clk 0:00:25.8]} 21. Bxf6
{[%clk 0:02:24.4]} 21... Nxf6 {[%clk 0:00:25.3]} 22. Qxf6 {[%clk 0:02:25.3]}
22... Rc7 {[%clk 0:00:25.4]} 23. Qxd6 {[%clk 0:02:22.9]} 23... Rd7 {[%clk
0:00:11.1]} 24. Qb8+ {[%clk 0:02:21.8]} 24... Rd8 {[%clk 0:00:08]} 25. Qe5
{[%clk 0:02:20.3]} 25... Qc5 {[%clk 0:00:05.3]} 26. d6 {[%clk 0:02:17.5]} 26...
Rf8 {[%clk 0:00:04.9]} 1-0

[Event "Early-Titled-Tuesday-Blitz-July-09-2024"]
[Site "Chess.com"]
[Date "2024.07.09"]
[Round "6"]
[White "Dmitry_Ponomarev"]
[Black "BashirliSaadat"]
[Result "1/2-1/2"]
[WhiteElo "2518"]
[BlackElo "2400"]
[TimeControl "180+1"]
[EndTime "9:06:27 PDT"]
[Termination "Game drawn - insufficient material"]

1. e4 {[%clk 0:03:00.9]} 1... c5 {[%clk 0:02:59.4]} 2. Nf3 {[%clk 0:03:00.1]}
2... g6 {[%clk 0:02:58.1]} 3. c4 {[%clk 0:02:59.5]} 3... Nc6 {[%clk 0:02:56.9]}
4. d4 {[%clk 0:03:00.4]} 4... cxd4 {[%clk 0:02:57]} 5. Nxd4 {[%clk 0:03:00.9]}
5... Nf6 {[%clk 0:02:57]} 6. Nc3 {[%clk 0:03:00]} 6... Nxd4 {[%clk 0:02:57.2]}
7. Qxd4 {[%clk 0:02:58.7]} 7... d6 {[%clk 0:02:58.1]} 8. Be3 {[%clk 0:02:58.6]}
8... Bg7 {[%clk 0:02:58.1]} 9. f3 {[%clk 0:02:59.1]} 9... O-O {[%clk 0:02:58.2]}
10. Qd2 {[%clk 0:02:59.2]} 10... Be6 {[%clk 0:02:58]} 11. Be2 {[%clk 0:02:58.8]}
11... Qa5 {[%clk 0:02:58.2]} 12. Nd5 {[%clk 0:02:57]} 12... Qxd2+ {[%clk
0:02:57.7]} 13. Bxd2 {[%clk 0:02:56.9]} 13... Nxd5 {[%clk 0:02:57.4]} 14. cxd5
{[%clk 0:02:57.8]} 14... Bd7 {[%clk 0:02:56.6]} 15. Bc3 {[%clk 0:02:53.6]} 15...
Bxc3+ {[%clk 0:02:55.7]} 16. bxc3 {[%clk 0:02:53.5]} 16... b5 {[%clk 0:02:52.1]}
17. Kd2 {[%clk 0:02:53.1]} 17... Rfc8 {[%clk 0:02:51.6]} 18. Rhb1 {[%clk
0:02:53]} 18... a6 {[%clk 0:02:51.5]} 19. Rb2 {[%clk 0:02:52.1]} 19... Rc7
{[%clk 0:02:51.1]} 20. Rc1 {[%clk 0:02:51.5]} 20... Rac8 {[%clk 0:02:51.2]} 21.
Rb4 {[%clk 0:02:45.7]} 21... a5 {[%clk 0:02:50.1]} 22. Rbb1 {[%clk 0:02:45.7]}
22... Rc5 {[%clk 0:02:49]} 23. Bd3 {[%clk 0:02:42.8]} 23... e6 {[%clk
0:02:43.3]} 24. dxe6 {[%clk 0:02:41.3]} 24... fxe6 {[%clk 0:02:44.2]} 25. Rc2
{[%clk 0:02:41.9]} 25... Kf7 {[%clk 0:02:40.7]} 26. Rbc1 {[%clk 0:02:23]} 26...
d5 {[%clk 0:02:30.9]} 27. exd5 {[%clk 0:02:22.5]} 27... exd5 {[%clk 0:02:31.8]}
28. Ke3 {[%clk 0:02:19.9]} 28... Ke6 {[%clk 0:02:28.8]} 29. Kd4 {[%clk
0:02:19.5]} 29... Kd6 {[%clk 0:02:26]} 30. a3 {[%clk 0:02:02.5]} 30... Rb8
{[%clk 0:02:14.5]} 31. Rd1 {[%clk 0:01:53.9]} 31... b4 {[%clk 0:02:10.6]} 32.
axb4 {[%clk 0:01:51.6]} 32... axb4 {[%clk 0:02:09.2]} 33. cxb4 {[%clk
0:01:50.7]} 33... Rxb4+ {[%clk 0:02:06.2]} 34. Ke3 {[%clk 0:01:50.1]} 34... Rxc2
{[%clk 0:02:04]} 35. Bxc2 {[%clk 0:01:51]} 35... Ke5 {[%clk 0:01:59.7]} 36. f4+
{[%clk 0:01:32]} 36... Rxf4 {[%clk 0:01:53.4]} 37. Rxd5+ {[%clk 0:01:31.5]}
37... Kxd5 {[%clk 0:01:53.2]} 38. Kxf4 {[%clk 0:01:31.8]} 38... Ke6 {[%clk
0:01:52.9]} 39. g4 {[%clk 0:01:30.1]} 39... Kf6 {[%clk 0:01:50.6]} 40. g5+
{[%clk 0:01:29.5]} 40... Kg7 {[%clk 0:01:50.4]} 41. h4 {[%clk 0:01:30.1]} 41...
h6 {[%clk 0:01:49.9]} 42. Be4 {[%clk 0:01:23.2]} 42... hxg5+ {[%clk 0:01:48.6]}
43. Kxg5 {[%clk 0:01:24.1]} 43... Bf5 {[%clk 0:01:46.3]} 44. Bxf5 {[%clk
0:01:21.2]} 44... gxf5 {[%clk 0:01:47.2]} 45. Kxf5 {[%clk 0:01:22.1]} 45... Kh6
{[%clk 0:01:47.2]} 46. h5 {[%clk 0:01:23]} 46... Kxh5 {[%clk 0:01:47.2]} 1/2-1/2

[Event "Early-Titled-Tuesday-Blitz-July-09-2024"]
[Site "Chess.com"]
[Date "2024.07.09"]
[Round "6"]
[White "Andrey_Klymchuk"]
[Black "ninguno46"]
[Result "1-0"]
[WhiteElo "2757"]
[BlackElo "2572"]
[TimeControl "180+1"]
[EndTime "9:06:32 PDT"]
[Termination "Andrey_Klymchuk won by resignation"]

1. e4 {[%clk 0:03:00.9]} 1... d6 {[%clk 0:02:59.1]} 2. d4 {[%clk 0:03:00.5]}
2... Nf6 {[%clk 0:02:59.6]} 3. Nc3 {[%clk 0:03:00.5]} 3... Nbd7 {[%clk
0:02:58.9]} 4. Nf3 {[%clk 0:02:59.5]} 4... e5 {[%clk 0:02:58.5]} 5. Bc4 {[%clk
0:02:59.9]} 5... Be7 {[%clk 0:02:58.6]} 6. O-O {[%clk 0:02:59.8]} 6... O-O
{[%clk 0:02:58.7]} 7. Re1 {[%clk 0:03:00.1]} 7... c6 {[%clk 0:02:58.4]} 8. a4
{[%clk 0:03:00.2]} 8... a5 {[%clk 0:02:58.7]} 9. h3 {[%clk 0:02:59.9]} 9... exd4
{[%clk 0:02:56.2]} 10. Nxd4 {[%clk 0:02:59.5]} 10... Nc5 {[%clk 0:02:56.3]} 11.
Bf1 {[%clk 0:02:58]} 11... Re8 {[%clk 0:02:52]} 12. g3 {[%clk 0:02:57.5]} 12...
Bf8 {[%clk 0:02:51.7]} 13. Bg2 {[%clk 0:02:57]} 13... Qb6 {[%clk 0:02:48.5]} 14.
b3 {[%clk 0:02:54.8]} 14... g6 {[%clk 0:02:38.4]} 15. Bf4 {[%clk 0:02:52.1]}
15... Nh5 {[%clk 0:02:33.7]} 16. Be3 {[%clk 0:02:51.5]} 16... Qc7 {[%clk
0:02:33.1]} 17. Qd2 {[%clk 0:02:49.1]} 17... Ng7 {[%clk 0:02:32.2]} 18. Rad1
{[%clk 0:02:46.6]} 18... f5 {[%clk 0:02:30.7]} 19. exf5 {[%clk 0:02:35.3]} 19...
Nxf5 {[%clk 0:02:30.6]} 20. Ndb5 {[%clk 0:02:09.5]} 20... Qf7 {[%clk 0:02:21.8]}
21. Bxc5 {[%clk 0:01:58.6]} 21... Rxe1+ {[%clk 0:02:19.9]} 22. Qxe1 {[%clk
0:01:44.5]} 22... dxc5 {[%clk 0:02:14.7]} 23. Rd8 {[%clk 0:01:37.7]} 23... Qe7
{[%clk 0:01:20.7]} 24. Qxe7 {[%clk 0:01:33.8]} 24... Nxe7 {[%clk 0:01:20.2]} 25.
Nc7 {[%clk 0:01:34.3]} 25... Rb8 {[%clk 0:01:15.9]} 26. Ne6 {[%clk 0:01:30.9]}
26... Bxe6 {[%clk 0:01:11.7]} 27. Rxb8 {[%clk 0:01:30.6]} 27... Bc8 {[%clk
0:01:10.2]} 28. Ne4 {[%clk 0:01:22.3]} 28... Bf5 {[%clk 0:01:04.9]} 29. Rxb7
{[%clk 0:01:17.9]} 1-0

[Event "Early-Titled-Tuesday-Blitz-July-09-2024"]
[Site "Chess.com"]
[Date "2024.07.09"]
[Round "6"]
[White "Zq1"]
[Black "Akewjon"]
[Result "1-0"]
[WhiteElo "2587"]
[BlackElo "2731"]
[TimeControl "180+1"]
[EndTime "9:06:36 PDT"]
[Termination "Zq1 won by resignation"]

1. d4 {[%clk 0:03:00.9]} 1... Nf6 {[%clk 0:02:59.8]} 2. c4 {[%clk 0:03:00.9]}
2... e6 {[%clk 0:02:58.3]} 3. Nc3 {[%clk 0:03:00.8]} 3... Bb4 {[%clk 0:02:57.3]}
4. a3 {[%clk 0:03:00.6]} 4... Bxc3+ {[%clk 0:02:57]} 5. bxc3 {[%clk 0:03:01.3]}
5... O-O {[%clk 0:02:56.7]} 6. e3 {[%clk 0:03:01.6]} 6... c5 {[%clk 0:02:54]} 7.
Bd3 {[%clk 0:03:00.8]} 7... Nc6 {[%clk 0:02:53.5]} 8. Ne2 {[%clk 0:02:58.9]}
8... d6 {[%clk 0:02:53.8]} 9. e4 {[%clk 0:02:57.7]} 9... e5 {[%clk 0:02:53.5]}
10. f3 {[%clk 0:02:54.6]} 10... b6 {[%clk 0:02:47.7]} 11. Bg5 {[%clk 0:02:47.6]}
11... h6 {[%clk 0:02:47]} 12. Bh4 {[%clk 0:02:47.1]} 12... Ba6 {[%clk
0:02:46.1]} 13. g4 {[%clk 0:02:29]} 13... g5 {[%clk 0:02:35.1]} 14. Bg3 {[%clk
0:02:26.2]} 14... Kg7 {[%clk 0:02:25.8]} 15. h4 {[%clk 0:02:23]} 15... Rh8
{[%clk 0:02:25.7]} 16. Qd2 {[%clk 0:02:19.8]} 16... Ng8 {[%clk 0:02:25.2]} 17.
Kf2 {[%clk 0:02:04.4]} 17... f6 {[%clk 0:02:15]} 18. Rh2 {[%clk 0:01:50.8]}
18... Nge7 {[%clk 0:02:09.8]} 19. Rah1 {[%clk 0:01:48]} 19... Ng6 {[%clk
0:02:09.5]} 20. hxg5 {[%clk 0:01:39]} 20... hxg5 {[%clk 0:02:08.5]} 21. Rxh8
{[%clk 0:01:38]} 21... Nxh8 {[%clk 0:02:09.4]} 22. Bh2 {[%clk 0:01:37.2]} 22...
Ng6 {[%clk 0:01:59.1]} 23. Ng3 {[%clk 0:01:36.8]} 23... Nce7 {[%clk 0:01:58.3]}
24. Nf5+ {[%clk 0:01:31]} 24... Nxf5 {[%clk 0:01:58.1]} 25. gxf5 {[%clk
0:01:18.5]} 25... Ne7 {[%clk 0:01:41.7]} 26. dxe5 {[%clk 0:01:13.5]} 26... dxe5
{[%clk 0:01:41.6]} 27. Bxe5 {[%clk 0:01:12.5]} 27... Nc6 {[%clk 0:01:35.8]} 28.
Qxg5+ {[%clk 0:01:10.5]} 1-0

[Event "Early-Titled-Tuesday-Blitz-July-09-2024"]
[Site "Chess.com"]
[Date "2024.07.09"]
[Round "6"]
[White "MVM2008"]
[Black "Arimin1329"]
[Result "0-1"]
[WhiteElo "2515"]
[BlackElo "2416"]
[TimeControl "180+1"]
[EndTime "9:06:36 PDT"]
[Termination "Arimin1329 won by resignation"]

1. e4 {[%clk 0:03:00.9]} 1... c6 {[%clk 0:03:00]} 2. d4 {[%clk 0:02:55.8]} 2...
d5 {[%clk 0:03:00.9]} 3. Nc3 {[%clk 0:02:55.7]} 3... dxe4 {[%clk 0:03:00.4]} 4.
Nxe4 {[%clk 0:02:52.6]} 4... Bf5 {[%clk 0:03:00.8]} 5. Ng3 {[%clk 0:02:52.9]}
5... Bg6 {[%clk 0:03:01.4]} 6. f4 {[%clk 0:02:53.3]} 6... e6 {[%clk 0:02:59.7]}
7. Nf3 {[%clk 0:02:52.8]} 7... Nd7 {[%clk 0:02:47.1]} 8. Ne5 {[%clk 0:02:48.4]}
8... Nxe5 {[%clk 0:02:43.9]} 9. fxe5 {[%clk 0:02:49.3]} 9... Ne7 {[%clk
0:02:41.2]} 10. Be2 {[%clk 0:02:45]} 10... h6 {[%clk 0:02:36.2]} 11. O-O {[%clk
0:02:44.4]} 11... Nf5 {[%clk 0:02:32.7]} 12. Nxf5 {[%clk 0:02:36.2]} 12... Bxf5
{[%clk 0:02:33.6]} 13. c3 {[%clk 0:02:36.3]} 13... Be7 {[%clk 0:02:27.3]} 14.
Qe1 {[%clk 0:02:32.8]} 14... O-O {[%clk 0:02:14.6]} 15. Bf4 {[%clk 0:02:07.1]}
15... c5 {[%clk 0:02:03.1]} 16. Rd1 {[%clk 0:02:00.3]} 16... cxd4 {[%clk
0:02:01.6]} 17. cxd4 {[%clk 0:02:01.2]} 17... Rc8 {[%clk 0:02:00.7]} 18. Rf3
{[%clk 0:01:47.3]} 18... Bh4 {[%clk 0:01:50.1]} 19. Qf1 {[%clk 0:01:42.2]} 19...
Rc2 {[%clk 0:01:39.9]} 20. d5 {[%clk 0:01:29.8]} 20... Bg4 {[%clk 0:01:17.4]}
21. dxe6 {[%clk 0:01:17.4]} 21... Qb6+ {[%clk 0:01:16.3]} 22. Be3 {[%clk
0:01:16.8]} 22... Qxe6 {[%clk 0:01:15.6]} 23. Bd3 {[%clk 0:01:09.2]} 23... Bxf3
{[%clk 0:01:04.8]} 24. Bxc2 {[%clk 0:01:06.2]} 24... Bxd1 {[%clk 0:01:00.1]} 0-1

[Event "Early-Titled-Tuesday-Blitz-July-09-2024"]
[Site "Chess.com"]
[Date "2024.07.09"]
[Round "6"]
[White "RCone"]
[Black "GMAneta"]
[Result "0-1"]
[WhiteElo "2431"]
[BlackElo "2638"]
[TimeControl "180+1"]
[EndTime "9:06:42 PDT"]
[Termination "GMAneta won on time"]

1. e4 {[%clk 0:02:57.5]} 1... c5 {[%clk 0:03:00]} 2. Nc3 {[%clk 0:02:56.9]} 2...
g6 {[%clk 0:02:58.8]} 3. f4 {[%clk 0:02:53.4]} 3... Bg7 {[%clk 0:02:58.5]} 4.
Nf3 {[%clk 0:02:54]} 4... e6 {[%clk 0:02:58.1]} 5. d4 {[%clk 0:02:43.1]} 5...
cxd4 {[%clk 0:02:55.8]} 6. Nxd4 {[%clk 0:02:44]} 6... a5 {[%clk 0:02:55.5]} 7.
Ndb5 {[%clk 0:02:35.7]} 7... Ne7 {[%clk 0:02:45.8]} 8. Nd6+ {[%clk 0:02:32.1]}
8... Kf8 {[%clk 0:02:45.3]} 9. Bc4 {[%clk 0:02:21]} 9... Qc7 {[%clk 0:02:36.8]}
10. Ncb5 {[%clk 0:02:11]} 10... Qc5 {[%clk 0:02:34.3]} 11. Qe2 {[%clk
0:02:01.2]} 11... Nbc6 {[%clk 0:02:31.4]} 12. Be3 {[%clk 0:01:55.3]} 12... Nd4
{[%clk 0:02:27.5]} 13. Bxd4 {[%clk 0:00:47.9]} 13... Bxd4 {[%clk 0:02:25.2]} 14.
c3 {[%clk 0:00:46.4]} 14... Be3 {[%clk 0:02:24.3]} 15. Rf1 {[%clk 0:00:35.3]}
15... Kg7 {[%clk 0:02:16.6]} 16. Rf3 {[%clk 0:00:34.4]} 16... Bg1 {[%clk
0:02:13]} 17. O-O-O {[%clk 0:00:33.9]} 17... Bxh2 {[%clk 0:02:13]} 18. g4 {[%clk
0:00:22]} 18... Bg1 {[%clk 0:02:10.1]} 19. Rff1 {[%clk 0:00:13.2]} 19... Be3+
{[%clk 0:02:08.5]} 20. Kb1 {[%clk 0:00:12.4]} 20... g5 {[%clk 0:02:04.3]} 21. f5
{[%clk 0:00:11.7]} 21... f6 {[%clk 0:02:01.4]} 22. Rf3 {[%clk 0:00:06.6]} 22...
Bf4 {[%clk 0:02:01.3]} 23. Rxf4 {[%clk 0:00:02.9]} 23... gxf4 {[%clk 0:02:00.5]}
24. g5 {[%clk 0:00:02.6]} 24... fxg5 {[%clk 0:02:00.7]} 25. Qh5 {[%clk
0:00:01.2]} 25... Rf8 {[%clk 0:01:58.3]} 0-1

[Event "Early-Titled-Tuesday-Blitz-July-09-2024"]
[Site "Chess.com"]
[Date "2024.07.09"]
[Round "6"]
[White "Evan_Attaker"]
[Black "FloMasterAAK"]
[Result "0-1"]
[WhiteElo "2730"]
[BlackElo "2589"]
[TimeControl "180+1"]
[EndTime "9:06:56 PDT"]
[Termination "FloMasterAAK won by resignation"]

1. a3 {[%clk 0:03:00.9]} 1... Nf6 {[%clk 0:02:58.4]} 2. c4 {[%clk 0:02:57.4]}
2... g6 {[%clk 0:02:57.9]} 3. b3 {[%clk 0:02:55.9]} 3... Bg7 {[%clk 0:02:57.8]}
4. Bb2 {[%clk 0:02:56.3]} 4... O-O {[%clk 0:02:58.4]} 5. Nf3 {[%clk 0:02:56.3]}
5... b6 {[%clk 0:02:57.3]} 6. e3 {[%clk 0:02:55.4]} 6... Bb7 {[%clk 0:02:57.6]}
7. Be2 {[%clk 0:02:56]} 7... c5 {[%clk 0:02:57.2]} 8. d3 {[%clk 0:02:55.8]} 8...
d5 {[%clk 0:02:56.5]} 9. cxd5 {[%clk 0:02:56.1]} 9... Qxd5 {[%clk 0:02:56.8]}
10. Qc2 {[%clk 0:02:55.4]} 10... Nc6 {[%clk 0:02:56.4]} 11. Nbd2 {[%clk
0:02:54.8]} 11... Rfd8 {[%clk 0:02:55.5]} 12. O-O {[%clk 0:02:53.5]} 12... Rac8
{[%clk 0:02:53.6]} 13. Rac1 {[%clk 0:02:50.7]} 13... Qd6 {[%clk 0:02:36.2]} 14.
Rfd1 {[%clk 0:02:46.3]} 14... Ng4 {[%clk 0:02:30.2]} 15. Bxg7 {[%clk 0:02:41.2]}
15... Kxg7 {[%clk 0:02:31.1]} 16. h3 {[%clk 0:02:40.2]} 16... Nge5 {[%clk
0:02:29.8]} 17. Ne4 {[%clk 0:02:36.6]} 17... Qb8 {[%clk 0:02:22.4]} 18. Qb2
{[%clk 0:02:26.8]} 18... f6 {[%clk 0:02:21.9]} 19. b4 {[%clk 0:02:23.6]} 19...
Nxf3+ {[%clk 0:02:17.5]} 20. Bxf3 {[%clk 0:02:20.3]} 20... Ne5 {[%clk
0:02:16.9]} 21. bxc5 {[%clk 0:02:14.7]} 21... Nxd3 {[%clk 0:02:14.5]} 22. Rxd3
{[%clk 0:02:10.1]} 22... Rxd3 {[%clk 0:02:15.4]} 23. Qb5 {[%clk 0:01:57.9]}
23... Bxe4 {[%clk 0:02:10.4]} 24. Bxe4 {[%clk 0:01:58.8]} 24... Rxc5 {[%clk
0:02:06.6]} 25. Qxc5 {[%clk 0:01:51.2]} 25... bxc5 {[%clk 0:02:05.3]} 26. Bxd3
{[%clk 0:01:51.5]} 26... Qb3 {[%clk 0:02:05.6]} 27. Bf1 {[%clk 0:01:44.2]} 27...
Qxa3 {[%clk 0:02:05.6]} 28. Rd1 {[%clk 0:01:43.5]} 28... a5 {[%clk 0:02:04.1]}
29. Rd7 {[%clk 0:01:43.7]} 29... c4 {[%clk 0:02:00.2]} 30. Bxc4 {[%clk 0:01:41]}
30... a4 {[%clk 0:01:56.1]} 31. Ra7 {[%clk 0:01:35.1]} 31... f5 {[%clk
0:01:44.5]} 32. g3 {[%clk 0:01:27.3]} 32... Qb4 {[%clk 0:01:42.9]} 33. Bf1
{[%clk 0:01:14.6]} 33... Kf6 {[%clk 0:01:40.1]} 34. h4 {[%clk 0:01:12.6]} 34...
a3 {[%clk 0:01:35.6]} 35. Ra6+ {[%clk 0:01:11.4]} 35... e6 {[%clk 0:01:35]} 36.
Kg2 {[%clk 0:01:01.6]} 36... Qb7+ {[%clk 0:01:33.7]} 37. Kg1 {[%clk 0:00:58.2]}
37... Qxa6 {[%clk 0:01:33.7]} 38. Bxa6 {[%clk 0:00:56.8]} 38... a2 {[%clk
0:01:34.6]} 0-1

[Event "Early-Titled-Tuesday-Blitz-July-09-2024"]
[Site "Chess.com"]
[Date "2024.07.09"]
[Round "6"]
[White "Barmen_EV"]
[Black "PapaieDudu"]
[Result "1-0"]
[WhiteElo "2533"]
[BlackElo "2396"]
[TimeControl "180+1"]
[EndTime "9:06:58 PDT"]
[Termination "Barmen_EV won by resignation"]

1. e4 {[%clk 0:02:56.9]} 1... c5 {[%clk 0:02:58.7]} 2. c3 {[%clk 0:02:57]} 2...
Nf6 {[%clk 0:02:58.4]} 3. e5 {[%clk 0:02:57.3]} 3... Nd5 {[%clk 0:02:58.7]} 4.
d4 {[%clk 0:02:58.2]} 4... cxd4 {[%clk 0:02:58.8]} 5. Nf3 {[%clk 0:02:58.9]}
5... e6 {[%clk 0:02:59.1]} 6. cxd4 {[%clk 0:02:57.5]} 6... Nc6 {[%clk
0:02:59.2]} 7. Bc4 {[%clk 0:02:57.2]} 7... Be7 {[%clk 0:02:58.2]} 8. O-O {[%clk
0:02:56.5]} 8... O-O {[%clk 0:02:58.8]} 9. Re1 {[%clk 0:02:55.9]} 9... d6 {[%clk
0:02:59]} 10. Bd2 {[%clk 0:02:55.7]} 10... Bd7 {[%clk 0:02:58]} 11. Nc3 {[%clk
0:02:55.9]} 11... dxe5 {[%clk 0:02:56.3]} 12. dxe5 {[%clk 0:02:54.6]} 12... Nxc3
{[%clk 0:02:55.7]} 13. Bxc3 {[%clk 0:02:54.2]} 13... Nb4 {[%clk 0:02:52.1]} 14.
a3 {[%clk 0:02:49.6]} 14... b5 {[%clk 0:02:50.2]} 15. Bb3 {[%clk 0:02:36.8]}
15... Na6 {[%clk 0:02:47.7]} 16. Qe2 {[%clk 0:02:33.7]} 16... Nc5 {[%clk
0:02:46.9]} 17. Bc2 {[%clk 0:02:33.1]} 17... Bc6 {[%clk 0:02:42.5]} 18. Rad1
{[%clk 0:02:31.7]} 18... Qc7 {[%clk 0:02:35.2]} 19. Nd4 {[%clk 0:02:31.1]} 19...
Qb7 {[%clk 0:02:25.7]} 20. Nxc6 {[%clk 0:01:49.1]} 20... Qxc6 {[%clk 0:02:24.9]}
21. Qh5 {[%clk 0:01:04.1]} 21... g6 {[%clk 0:02:23.6]} 22. Qh6 {[%clk
0:01:04.3]} 22... Rfd8 {[%clk 0:02:19.6]} 23. Rd6 {[%clk 0:01:04.2]} 23... Rxd6
{[%clk 0:02:01.4]} 24. exd6 {[%clk 0:01:05.1]} 24... Bf8 {[%clk 0:02:01.5]} 25.
Qf4 {[%clk 0:01:00.5]} 25... Nd7 {[%clk 0:01:54.7]} 26. Be4 {[%clk 0:00:59.8]}
26... Qc8 {[%clk 0:01:51.6]} 27. Bxa8 {[%clk 0:00:57.1]} 27... Qxa8 {[%clk
0:01:51.3]} 28. Qd4 {[%clk 0:00:57.8]} 28... f6 {[%clk 0:01:39.2]} 29. Rxe6
{[%clk 0:00:57]} 29... Kf7 {[%clk 0:01:11.9]} 30. Rxf6+ {[%clk 0:00:51.1]} 30...
Nxf6 {[%clk 0:01:11.9]} 31. Qxf6+ {[%clk 0:00:52]} 31... Ke8 {[%clk 0:01:12.1]}
32. Qe6+ {[%clk 0:00:51.9]} 1-0

[Event "Early-Titled-Tuesday-Blitz-July-09-2024"]
[Site "Chess.com"]
[Date "2024.07.09"]
[Round "6"]
[White "gmpeter008"]
[Black "albi1999"]
[Result "1-0"]
[WhiteElo "2465"]
[BlackElo "2633"]
[TimeControl "180+1"]
[EndTime "9:07:11 PDT"]
[Termination "gmpeter008 won by resignation"]

1. e4 {[%clk 0:03:00.9]} 1... c6 {[%clk 0:02:58.7]} 2. d3 {[%clk 0:02:55.1]}
2... d5 {[%clk 0:02:59.6]} 3. Nf3 {[%clk 0:02:51.8]} 3... dxe4 {[%clk
0:02:59.1]} 4. dxe4 {[%clk 0:02:52.7]} 4... Qxd1+ {[%clk 0:02:59.5]} 5. Kxd1
{[%clk 0:02:53.4]} 5... Nf6 {[%clk 0:02:59.5]} 6. Bd3 {[%clk 0:02:48.8]} 6...
Bg4 {[%clk 0:02:58.3]} 7. Ke2 {[%clk 0:02:48.9]} 7... Nbd7 {[%clk 0:02:56.5]} 8.
Nd2 {[%clk 0:02:48.7]} 8... Nc5 {[%clk 0:02:41.9]} 9. b4 {[%clk 0:02:23.2]} 9...
Nxd3 {[%clk 0:02:16.3]} 10. cxd3 {[%clk 0:02:23.1]} 10... e6 {[%clk 0:02:15.7]}
11. Rb1 {[%clk 0:02:22.7]} 11... a6 {[%clk 0:02:12.5]} 12. Nc4 {[%clk
0:02:16.6]} 12... Nd7 {[%clk 0:02:06.7]} 13. h3 {[%clk 0:02:15]} 13... Bh5
{[%clk 0:02:04]} 14. g4 {[%clk 0:02:15.2]} 14... Bg6 {[%clk 0:02:04.1]} 15. Bf4
{[%clk 0:02:14.7]} 15... h5 {[%clk 0:01:56.5]} 16. Bd6 {[%clk 0:02:10.3]} 16...
Be7 {[%clk 0:01:24.1]} 17. Bxe7 {[%clk 0:01:45]} 17... Kxe7 {[%clk 0:01:25]} 18.
Nfe5 {[%clk 0:01:45.4]} 18... Nxe5 {[%clk 0:01:17.2]} 19. Nxe5 {[%clk
0:01:46.3]} 19... hxg4 {[%clk 0:01:11]} 20. hxg4 {[%clk 0:01:46]} 20... Rxh1
{[%clk 0:01:07.8]} 21. Rxh1 {[%clk 0:01:46.9]} 21... a5 {[%clk 0:01:06.8]} 22.
a3 {[%clk 0:01:39.6]} 22... axb4 {[%clk 0:01:05.9]} 23. axb4 {[%clk 0:01:40.5]}
23... Ra2+ {[%clk 0:01:02.1]} 24. Ke3 {[%clk 0:01:40.7]} 24... Rb2 {[%clk
0:01:02.2]} 25. f4 {[%clk 0:01:24.7]} 25... Kf6 {[%clk 0:00:40.3]} 26. Rh8
{[%clk 0:01:06.2]} 26... Rxb4 {[%clk 0:00:37]} 27. Re8 {[%clk 0:01:06.4]} 1-0

[Event "Early-Titled-Tuesday-Blitz-July-09-2024"]
[Site "Chess.com"]
[Date "2024.07.09"]
[Round "6"]
[White "GoltsevDmitry2000"]
[Black "paranoyak"]
[Result "1-0"]
[WhiteElo "2740"]
[BlackElo "2558"]
[TimeControl "180+1"]
[EndTime "9:07:12 PDT"]
[Termination "GoltsevDmitry2000 won by resignation"]

1. e4 {[%clk 0:02:59.8]} 1... c5 {[%clk 0:02:57.6]} 2. Nf3 {[%clk 0:03:00.1]}
2... Nc6 {[%clk 0:02:58.1]} 3. d4 {[%clk 0:03:00.6]} 3... cxd4 {[%clk 0:02:59]}
4. Nxd4 {[%clk 0:03:01.2]} 4... Nf6 {[%clk 0:02:58.6]} 5. Nc3 {[%clk 0:03:01.6]}
5... d6 {[%clk 0:02:58]} 6. Be2 {[%clk 0:03:01.3]} 6... e6 {[%clk 0:02:55.6]} 7.
O-O {[%clk 0:03:01.4]} 7... a6 {[%clk 0:02:55.5]} 8. Be3 {[%clk 0:03:01.7]} 8...
Be7 {[%clk 0:02:54.8]} 9. Qd2 {[%clk 0:03:01.9]} 9... O-O {[%clk 0:02:47.4]} 10.
f4 {[%clk 0:03:01.7]} 10... Nxd4 {[%clk 0:02:29.8]} 11. Qxd4 {[%clk 0:02:59.6]}
11... Qa5 {[%clk 0:02:16.5]} 12. Bf3 {[%clk 0:02:51.7]} 12... e5 {[%clk
0:02:14.2]} 13. Qd2 {[%clk 0:02:47.6]} 13... exf4 {[%clk 0:02:07.8]} 14. Bxf4
{[%clk 0:02:48.5]} 14... Be6 {[%clk 0:02:03]} 15. Kh1 {[%clk 0:02:47.3]} 15...
Rad8 {[%clk 0:01:59]} 16. Nd5 {[%clk 0:02:43.1]} 16... Nxd5 {[%clk 0:00:31.3]}
17. Qxa5 {[%clk 0:02:41.5]} 17... Nxf4 {[%clk 0:00:32]} 18. Rad1 {[%clk
0:02:38.2]} 18... Ng6 {[%clk 0:00:24.1]} 19. e5 {[%clk 0:02:19.9]} 19... Nxe5
{[%clk 0:00:19.1]} 20. Bxb7 {[%clk 0:02:19.8]} 20... Rb8 {[%clk 0:00:20]} 21.
Bxa6 {[%clk 0:02:11.7]} 21... Rxb2 {[%clk 0:00:19.6]} 22. a4 {[%clk 0:02:07.9]}
22... Ra8 {[%clk 0:00:20.1]} 23. Rb1 {[%clk 0:02:01.9]} 23... Bc4 {[%clk
0:00:09.5]} 24. Rxb2 {[%clk 0:01:46.7]} 24... Bxf1 {[%clk 0:00:08.8]} 25. Qc7
{[%clk 0:01:41.9]} 25... Bd8 {[%clk 0:00:02.4]} 26. Rb8 {[%clk 0:01:38.9]} 26...
Rxb8 {[%clk 0:00:03]} 27. Qxb8 {[%clk 0:01:39]} 27... Nc6 {[%clk 0:00:03]} 28.
Qxd6 {[%clk 0:01:36.3]} 28... Bxa6 {[%clk 0:00:01.7]} 29. Qxc6 {[%clk
0:01:36.7]} 1-0